bitfinex-derivatives/quotes_ETHF0:USTF0_20250803
["timestamp","ask_amount","ask_price","bid_price","bid_amount"]
[1754239057474,2.6699,3487.5,3487.4,2.7182]
[1754239058874,2.6699,3487.5,3487.4,5.94055389]
[1754239060179,2.6699,3487.5,3487.4,5.35445389]
[1754239060477,2.6699,3487.5,3487.4,5.94055389]
[1754239062674,1.64,3488.4,3487.8,0.3792]
[1754239062874,1.92983,3488.5,3488.4,0.3189]
[1754239063078,3.24323,3488.5,3488.4,2.7182]
[1754239063975,3.24323,3488.5,3488.2,3.22235389]
[1754239063976,3.21853,3488.5,3488.2,3.22235389]
[1754239064182,1.65935,3488.3,3488.2,1.3674]
[1754239064388,3.30065,3488.3,3488.2,1.3674]
[1754239064579,0.3167,3487.9,3487.8,2.3612]
[1754239064776,1.086,3487.9,3487.8,2.74]
[1754239064982,2.7273,3487.9,3487.8,2.74]
[1754239065479,2.2485,3487.9,3487.8,2.74]
[1754239065688,1.6426,3487.9,3487.8,2.74]
[1754239066083,0.6846,3487.9,3487.8,2.74]
[1754239067386,1.6413,3488.2,3487.8,2.74]
[1754239067578,0.57336,3488.3,3488.1,8.12215389]
[1754239067781,2.1214,3488.2,3488.1,9.17015389]
[1754239068286,2.7273,3488.2,3488.1,9.17015389]
[1754239068782,3.30063,3488.5,3488.4,1.0966]
[1754239068980,3.30063,3488.5,3488.4,5.96235389]
[1754239072393,0.57333,3488.5,3488.4,5.96235389]
[1754239072586,0.5566,3488.9,3488.4,5.96235389]
[1754239072587,2.7273,3488.9,3488.8,0.7793]
[1754239072786,0.6846,3488.9,3488.8,9.17015389]
[1754239073892,2.7273,3488.9,3488.8,9.17015389]
[1754239074390,2.7273,3488.9,3488.8,6.43015389]
[1754239074586,2.7273,3488.9,3488.8,7.52675389]
[1754239074792,2.7273,3488.9,3488.8,9.17015389]
[1754239075287,0.57323,3489.1,3488.8,9.74342389]
[1754239075592,2.7273,3489.2,3489.1,2.74]
[1754239076890,2.1214,3489.2,3489.1,2.74]
[1754239077082,2.1214,3489.2,3488.8,6.43015389]
[1754239077083,0.57319,3489.3,3489.2,2.1467]
[1754239077287,0.57317,3489.5,3489.2,2.74]
[1754239077596,1.25779,3489.3,3489.2,4.3044]
[1754239077788,3.30049,3489.3,3489.2,4.3044]
[1754239078089,1.086,3488.9,3488.8,7.52675389]
[1754239078295,2.7273,3488.9,3488.8,9.17015389]
[1754239079096,2.7273,3488.9,3488.8,5.9478]
[1754239079285,2.7273,3488.9,3488.8,3.2078]
[1754239079489,2.7273,3489.0,3488.9,2.74]
[1754239080484,3.30055,3488.9,3488.8,3.2078]
[1754239082597,1.43296,3489.4,3488.5,2.74]
[1754239082598,3.3006,3488.6,3488.5,2.74]
[1754239082799,3.3006,3488.6,3488.4,3.2078]
[1754239082998,2.7273,3488.5,3488.4,3.2078]
[1754239083301,2.7273,3488.5,3488.4,3.5866]
[1754239084093,2.7273,3488.5,3488.4,3.9798]
[1754239084396,2.7273,3488.5,3488.4,5.9478]
[1754239084901,2.7273,3488.5,3488.4,3.9798]
[1754239085101,2.7273,3488.5,3488.4,3.2078]
[1754239085304,0.5733,3488.6,3488.1,1.0501]
[1754239085305,1.086,3488.2,3488.1,2.1467]
[1754239085513,2.7273,3488.2,3488.1,0.772]
[1754239086104,2.7273,3488.2,3488.1,1.8221]
[1754239086303,2.7273,3488.2,3488.1,2.74]
[1754239090511,3.30069,3488.1,3488.0,3.2078]
[1754239094311,2.2539,3487.6,3487.5,5.507]
[1754239094612,2.6261,3487.6,3487.5,5.8752]
[1754239095414,2.6261,3487.6,3487.5,5.3357]
[1754239096922,2.6261,3487.6,3487.5,5.8752]
[1754239099214,2.6261,3487.6,3487.5,3.2078]
[1754239099415,2.6261,3487.6,3487.5,3.576]
[1754239099612,2.6261,3487.6,3487.5,5.0144]
[1754239099810,2.6261,3487.6,3487.5,5.8752]
[1754239104119,1.6207,3487.9,3487.8,1.79063]
[1754239104414,2.6261,3487.9,3487.8,6.46318389]
[1754239105411,0.57334,3488.4,3488.0,0.5734]
[1754239105613,1.6207,3488.5,3488.4,1.0686]
[1754239105813,1.7114,3488.5,3488.4,2.6674]
[1754239106019,2.6261,3488.5,3488.4,2.1279]
[1754239106211,1.0621,3488.2,3488.1,1.0686]
[1754239106411,1.0621,3488.2,3488.1,2.6674]
[1754239106611,1.0621,3488.8,3488.7,1.8066]
[1754239106909,1.0621,3488.8,3488.7,5.88975389]
[1754239106910,2.6261,3488.8,3488.7,5.88975389]
[1754239107113,1.0621,3488.8,3488.7,5.88975389]
[1754239107314,1.0621,3488.8,3488.7,2.6674]
[1754239107511,2.6261,3488.8,3488.7,2.6674]
[1754239109013,0.5395,3489.4,3488.8,0.57327]
[1754239109209,2.6261,3489.4,3489.3,2.6674]
[1754239109412,3.40384825,3489.4,3489.3,2.6674]
[1754239110113,2.6261,3489.4,3489.3,2.1279]
[1754239110408,1.3201,3489.1,3488.9,3.2078]
[1754239110613,1.63534,3489.1,3488.6,1.5988]
[1754239110820,2.6261,3488.7,3488.6,2.6674]
[1754239111919,1.0621,3488.7,3488.5,3.2078]
[1754239112223,2.6261,3488.6,3488.5,3.2078]
[1754239112719,1.564,3488.5,3488.1,0.57339]
[1754239113023,2.6261,3488.2,3488.1,1.6081]
[1754239113211,2.6261,3488.2,3488.0,3.2078]
[1754239113418,2.6261,3488.1,3488.0,3.2078]
[1754239114015,2.6261,3488.1,3488.0,3.576]
[1754239114224,2.6261,3488.1,3488.0,4.5445]
[1754239114421,2.6261,3488.1,3488.0,5.3357]
[1754239115624,2.65992,3488.5,3488.4,1.0686]
[1754239115827,3.19942,3488.5,3488.4,2.6674]
[1754239116125,2.73352,3488.5,3488.4,1.658]
[1754239116324,3.19942,3488.5,3488.4,1.658]
[1754239116922,2.6261,3488.5,3488.4,5.8752]
[1754239117125,0.57328,3488.8,3488.4,8.03825389]
[1754239117421,2.6261,3488.5,3488.4,4.2764]
[1754239117918,1.564,3488.5,3488.1,0.57339]
[1754239118124,1.9392,3488.2,3488.1,3.24079]
[1754239118323,0.57331,3488.6,3488.1,1.64199]
[1754239118523,1.0621,3488.3,3488.2,2.6674]
[1754239118828,2.6261,3488.3,3488.2,2.6674]
[1754239119623,2.6261,3488.3,3488.2,0.7473]
[1754239119828,2.6261,3488.1,3488.0,3.2078]
[1754239120526,2.6261,3488.1,3488.0,3.9551]
[1754239121424,2.6261,3488.1,3488.0,4.8658]
[1754239121725,2.6261,3488.1,3488.0,3.2078]
[1754239122522,2.6261,3488.1,3488.0,5.3357]
[1754239122724,2.6261,3488.1,3488.0,5.8752]
[1754239125930,2.6261,3488.1,3488.0,5.3357]
[1754239126440,2.6261,3488.1,3488.0,3.9551]
[1754239127832,2.6261,3488.1,3488.0,4.9601]
[1754239128033,2.6261,3488.1,3488.0,5.2818]
[1754239128934,2.6261,3488.1,3488.0,5.8516]
[1754239131833,1.31787,3487.6,3487.5,4.8525]
[1754239132138,2.6169,3487.6,3487.5,5.8575]
[1754239133631,1.6649,3487.6,3487.5,9.07985389]
[1754239133831,1.24899,3488.1,3488.0,1.0749]
[1754239134031,2.23829,3488.1,3488.0,9.07985389]
[1754239134229,1.79129,3488.1,3488.0,9.07985389]
[1754239134737,1.2179,3488.1,3488.0,9.07985389]
[1754239136234,2.0541,3488.1,3488.0,9.07985389]
[1754239136938,1.6649,3488.1,3488.0,9.07985389]
[1754239139135,1.2179,3488.1,3488.0,9.07985389]
[1754239139436,0.92856,3488.3,3488.2,2.6497]
[1754239139639,3.19026,3488.3,3488.2,2.6497]
[1754239140342,1.24896,3488.3,3488.2,2.6497]
[1754239140540,1.79126,3488.3,3488.2,2.6497]
[1754239140740,3.19026,3488.3,3488.2,2.6497]
[1754239140935,0.57336,3488.3,3488.2,2.6497]
[1754239141336,0.57336,3488.3,3488.2,2.0799]
[1754239141634,1.63816,3488.3,3488.0,3.2078]
[1754239141836,1.63819,3488.1,3488.0,4.966]
[1754239142035,3.19029,3488.1,3488.0,5.2877]
[1754239142342,3.19029,3488.1,3488.0,5.8575]
[1754239142841,3.19029,3488.1,3488.0,4.5136]
[1754239143039,3.19029,3488.1,3488.0,5.2877]
[1754239143342,3.19029,3488.1,3488.0,5.8575]
[1754239143738,0.57337,3488.2,3488.1,2.6497]
[1754239144034,3.19027,3488.2,3488.1,0.3649]
[1754239144232,1.1051,3488.1,3488.0,3.7604]
[1754239144434,2.6169,3488.1,3488.0,3.961]
[1754239144642,2.6169,3488.1,3488.0,3.2078]
[1754239145134,1.63825,3487.7,3487.4,1.5748]
[1754239145341,1.0648,3487.6,3487.5,0.7532]
[1754239146035,2.1699,3487.6,3487.5,0.7532]
[1754239146237,2.6169,3487.6,3487.5,0.7532]
[1754239147140,2.6169,3487.6,3487.5,2.6497]
[1754239149742,0.57348,3487.5,3487.2,6.43015389]
[1754239150041,2.6169,3487.3,3487.2,4.8525]
[1754239150237,2.6169,3487.3,3487.2,8.07485389]
[1754239150439,2.6169,3487.3,3487.2,9.07985389]
[1754239151745,2.0541,3487.3,3487.2,9.07985389]
[1754239152246,2.6169,3487.3,3487.2,9.07985389]
[1754239152946,2.6169,3487.3,3487.2,4.2827]
[1754239153141,2.6169,3487.3,3487.2,5.2877]
[1754239154142,2.6169,3487.3,3487.2,4.2827]
[1754239154353,2.6169,3487.3,3487.2,4.5286]
[1754239154544,1.48815,3486.5,3486.4,2.5825522]
[1754239154735,2.56449,3486.3,3486.2,1.592]
[1754239155044,0.5343,3485.9,3485.8,2.5825522]
[1754239155236,1.9908,3485.9,3485.8,0.5302]
[1754239155437,1.9908,3485.9,3485.8,0.9131]
[1754239155733,2.1755,3485.9,3485.8,0.5302]
[1754239156139,1.6952,3485.3,3485.2,0.3829]
[1754239156443,1.9908,3485.3,3485.2,1.5031]
[1754239156842,1.9908,3485.3,3485.2,2.0333]
[1754239157154,1.9908,3485.3,3485.2,0.9131]
[1754239157446,2.1755,3485.3,3485.2,0.5302]
[1754239158651,1.0127,3485.2,3485.1,0.9131]
[1754239158948,3.2078,3486.0,3485.8,2.6009]
[1754239159143,3.2078,3486.0,3485.9,5.82325389]
[1754239160539,3.2078,3486.0,3485.9,2.6009]
[1754239162049,0.9145,3486.8,3486.7,0.3532]
[1754239162250,1.9908,3486.8,3486.7,0.5302]
[1754239162446,0.9781,3486.5,3486.4,1.3544]
[1754239162645,1.9908,3486.5,3486.4,1.3544]
[1754239162846,1.9908,3486.5,3486.4,1.6801]
[1754239163049,1.9908,3486.5,3486.4,2.0333]
[1754239163248,0.9781,3485.9,3485.8,1.5031]
[1754239163448,1.9908,3485.9,3485.8,2.6009]
[1754239166758,1.2168,3485.9,3485.8,2.6009]
[1754239166961,0.3802,3485.9,3485.8,2.6009]
[1754239167251,0.3802,3486.5,3486.4,2.1596]
[1754239167452,1.10792,3486.7,3486.4,2.6009]
[1754239167751,1.10792,3486.7,3486.6,2.0707]
[1754239167752,2.56442,3486.7,3486.6,2.0707]
[1754239168052,2.56442,3486.7,3486.6,2.6009]
[1754239168249,0.57362,3486.7,3486.6,2.6009]
[1754239168553,0.9145,3486.8,3486.7,2.6009]
[1754239168948,1.2168,3486.8,3486.7,2.6009]
[1754239169154,1.6952,3486.8,3486.7,2.6009]
[1754239169552,1.9908,3486.8,3486.7,2.6009]
[1754239169856,1.9908,3486.4,3486.3,1.5031]
[1754239170250,1.9908,3486.4,3486.3,2.6009]
[1754239171550,0.3802,3486.4,3486.3,2.6009]
[1754239171948,2.03011,3486.8,3486.7,1.0618]
[1754239172156,2.03011,3486.8,3486.7,2.6009]
[1754239172548,3.2078,3486.9,3486.8,1.5391]
[1754239172753,3.2078,3486.9,3486.8,2.6009]
[1754239172754,0.15643608,3486.9,3486.8,2.6009]
[1754239173152,1.9908,3486.9,3486.8,2.0333]
[1754239173453,1.9908,3486.9,3486.8,2.6009]
[1754239173651,2.56439,3486.9,3486.8,2.0333]
[1754239173864,1.5124,3486.6,3486.5,1.5031]
[1754239174157,1.9908,3486.6,3486.5,2.0707]
[1754239174457,1.9908,3486.6,3486.5,2.6009]
[1754239176955,1.9908,3486.6,3486.5,0.9131]
[1754239177154,2.1755,3486.6,3486.5,0.5302]
[1754239177454,0.9781,3486.3,3486.2,3.2078]
[1754239177652,1.9908,3486.3,3486.2,3.5907]
[1754239178152,1.9908,3486.3,3486.2,0.5302]
[1754239178351,2.1755,3486.3,3486.2,0.5302]
[1754239179455,1.0218,3486.0,3485.9,1.3544]
[1754239179656,2.0345,3486.0,3485.9,1.3544]
[1754239180558,2.0345,3486.0,3485.9,2.0333]
[1754239180856,2.0345,3486.0,3485.9,2.6009]
[1754239182155,1.88875,3485.9,3485.8,0.5302]
[1754239182350,2.82035,3485.9,3485.8,0.5302]
[1754239182550,2.1299,3485.6,3485.5,1.2388]
[1754239182856,2.6083,3485.6,3485.5,1.2388]
[1754239183157,2.0345,3485.6,3485.5,2.0333]
[1754239183756,2.0345,3485.6,3485.5,2.6009]
[1754239185460,0.6491,3485.3,3485.2,1.2236]
[1754239185750,2.0874,3485.3,3485.2,2.6286]
[1754239185951,2.0874,3485.3,3485.2,0.534]
[1754239186152,2.0874,3485.3,3485.2,0.9012]
[1754239186855,2.2961,3485.3,3485.2,0.534]
[1754239187456,1.22302,3484.9,3484.8,1.1629]
[1754239187659,1.60112,3484.9,3484.8,2.0774]
[1754239187851,1.60112,3484.9,3484.8,2.6286]
[1754239188054,2.66132,3484.9,3484.8,2.6286]
[1754239188250,1.63407,3485.2,3484.8,2.6286]
[1754239188560,0.95191,3485.5,3485.4,2.6286]
[1754239189152,4.63575,3485.9,3485.8,1.0701]
[1754239189359,5.86895,3485.9,3485.8,2.6286]
[1754239197762,5.86895,3485.9,3485.8,2.0774]
[1754239198062,5.86895,3485.9,3485.8,1.6041]
[1754239198458,1.53605,3485.3,3485.2,2.6286]
[1754239199063,0.9622,3485.3,3485.2,2.6286]
[1754239199255,0.3781,3485.3,3485.2,2.6286]
[1754239200466,2.0874,3485.3,3485.2,1.6213]
[1754239200856,2.66133,3484.8,3484.7,1.6213]
[1754239201053,2.66133,3484.8,3484.7,2.6286]
[1754239202562,2.32743,3484.8,3484.7,2.6286]
[1754239203165,1.53613,3484.8,3484.7,2.6286]
[1754239203472,0.95202,3484.9,3484.8,2.6286]
[1754239205876,2.66132,3484.9,3484.8,2.6286]
[1754239206071,2.66132,3484.9,3484.8,0.9012]
[1754239206471,2.66132,3484.9,3484.8,2.0774]
[1754239206776,2.66132,3484.9,3484.8,2.6286]
[1754239207476,2.66132,3484.9,3484.8,0.9012]
[1754239207774,2.66132,3484.9,3484.8,0.534]
[1754239207973,2.69286,3484.6,3484.5,2.0946]
[1754239208180,3.22946,3484.6,3484.5,2.0946]
[1754239208369,3.22946,3484.6,3484.5,1.5434]
[1754239209271,3.22946,3484.6,3484.5,2.0946]
[1754239210077,1.63272,3484.3,3484.2,2.6286]
[1754239210277,2.69292,3484.3,3484.2,2.6286]
[1754239210480,3.22952,3484.3,3484.2,1.2236]
[1754239210877,3.22952,3484.3,3484.2,2.6286]
[1754239211884,3.22952,3484.3,3484.2,1.2236]
[1754239212178,3.22952,3484.3,3484.2,2.0774]
[1754239212378,2.69292,3484.3,3484.2,2.6286]
[1754239212576,0.574,3484.4,3484.2,1.0701]
[1754239212873,3.2078,3484.7,3483.9,1.03330989]
[1754239212874,0.57397,3484.6,3484.5,2.2481]
[1754239213079,0.57397,3484.6,3484.5,2.6286]
[1754239213584,1.52127,3484.6,3484.5,2.6286]
[1754239213881,2.38127,3484.6,3484.5,2.6286]
[1754239214484,2.69337,3484.6,3484.5,2.6286]
[1754239216478,2.69337,3484.6,3484.1,3.2078]
[1754239216479,0.574,3484.4,3484.2,0.5429]
[1754239216673,0.57395,3484.7,3484.6,1.4543]
[1754239216873,1.43462,3485.3,3485.2,0.7128]
[1754239216874,2.67585,3485.3,3485.2,0.7128]
[1754239217184,3.24793,3484.8,3484.7,2.6557]
[1754239217583,3.24793,3484.8,3484.2,3.2078]
[1754239217584,2.67599,3484.4,3484.3,2.6557]
[1754239217784,3.24799,3484.4,3484.3,2.6557]
[1754239217988,3.24799,3484.4,3484.3,2.1171]
[1754239218482,2.67606,3484.0,3483.9,3.68900989]
[1754239218785,3.24806,3484.0,3483.9,3.68900989]
[1754239219584,3.24806,3484.0,3483.9,3.15040989]
[1754239219779,3.24806,3484.0,3483.9,1.03330989]
[1754239221588,0.57406,3484.0,3483.9,3.68900989]
[1754239224388,0.57404,3484.1,3484.0,1.5701]
[1754239224688,0.57404,3484.1,3484.0,2.6557]
[1754239225294,1.50394,3484.1,3484.0,2.6557]
[1754239225581,1.30604,3484.1,3483.9,1.03330989]
[1754239225790,1.6133,3484.0,3483.9,2.11890989]
[1754239226386,1.6133,3484.0,3483.9,3.68900989]
[1754239226786,1.3012,3484.0,3483.9,3.68900989]
[1754239226983,0.732,3484.0,3483.9,3.68900989]
[1754239227585,0.57404,3484.1,3483.9,3.68900989]
[1754239227782,0.57404,3484.1,3484.0,2.6557]
[1754239228184,1.50394,3484.1,3484.0,2.6557]
[1754239228787,2.18734,3484.1,3484.0,2.6557]
[1754239228992,3.24804,3484.1,3484.0,2.6557]
[1754239229495,2.67604,3484.1,3484.0,2.6557]
[1754239230188,2.67604,3484.1,3483.9,1.03330989]
[1754239230384,2.674,3484.0,3483.9,1.03330989]
[1754239231088,2.674,3484.0,3483.9,1.57620989]
[1754239231293,2.674,3484.0,3483.9,1.03330989]
[1754239232091,0.732,3484.0,3483.9,1.03330989]
[1754239232299,2.674,3484.0,3483.9,3.68900989]
[1754239232896,2.674,3484.0,3483.9,3.15040989]
[1754239233892,2.674,3484.0,3483.9,2.66180989]
[1754239234093,2.674,3484.0,3483.9,2.28900989]
[1754239234696,2.674,3484.0,3483.9,1.03330989]
[1754239238703,2.674,3484.0,3483.9,0.45230989]
[1754239240315,0.57419,3483.3,3483.2,0.5429]
[1754239240515,2.10699,3483.3,3483.2,2.6557]
[1754239241312,2.67619,3483.3,3483.2,2.6557]
[1754239241914,2.67619,3483.3,3483.2,0.9296]
[1754239242214,2.95379,3483.3,3483.2,0.5429]
[1754239243207,0.57427,3482.7,3482.6,3.2078]
[1754239243513,0.57427,3482.7,3482.6,5.8635]
[1754239244309,1.0579,3483.0,3482.6,5.8635]
[1754239244310,0.57427,3482.8,3482.7,1.5719]
[1754239244507,3.2078,3483.4,3482.8,1.0965]
[1754239244815,3.78188,3483.9,3483.8,2.6143]
[1754239245018,3.2078,3483.9,3483.8,2.6143]
[1754239246916,0.57407,3484.0,3483.9,2.6143]
[1754239249522,2.69097,3484.0,3483.9,2.6143]
[1754239250421,1.1665,3484.0,3483.9,2.6143]
[1754239250925,0.6777,3484.0,3483.9,2.6143]
[1754239251115,0.3747,3484.0,3483.9,2.6143]
[1754239251317,0.57405,3484.1,3484.0,1.5719]
[1754239251620,0.57405,3484.1,3484.0,2.6143]
[1754239252723,1.06285,3484.1,3484.0,2.6143]
[1754239252914,2.12395,3484.1,3484.0,2.6143]
[1754239253222,2.69095,3484.1,3484.0,2.6143]
[1754239256223,2.95959,3483.8,3483.7,0.9031]
[1754239256518,2.95959,3483.8,3483.7,1.4492]
[1754239256723,2.69099,3483.8,3483.7,2.6143]
[1754239259019,3.2078,3483.9,3483.7,1.0424]
[1754239259225,0.57405,3484.1,3484.0,1.5178]
[1754239259418,0.57405,3484.1,3484.0,2.6143]
[1754239260322,3.2078,3484.3,3484.2,0.7184]
[1754239260520,4.2689,3484.3,3484.2,2.6143]
[1754239260715,5.3247,3484.3,3484.2,2.6143]
[1754239261120,1.0611,3483.9,3483.8,1.5928]
[1754239261321,1.5499,3483.9,3483.8,1.5928]
[1754239261823,1.5499,3483.9,3483.8,2.6143]
[1754239262022,3.2078,3484.3,3484.2,2.1389]
[1754239262227,3.2078,3484.7,3484.6,1.0424]
[1754239262531,0.5739,3485.0,3484.6,2.6143]
[1754239262722,0.5739,3485.0,3484.7,1.5719]
[1754239262928,0.5739,3485.0,3484.3,0.574]
[1754239262929,1.5156,3485.0,3484.9,1.0424]
[1754239263123,1.5156,3485.0,3484.9,2.6143]
[1754239263323,2.6908,3485.0,3484.9,2.6143]
[1754239263630,1.2447,3485.0,3484.9,2.6143]
[1754239263832,0.3747,3485.0,3484.9,2.6143]
[1754239266627,0.9417,3485.0,3484.9,2.6143]
[1754239266828,0.3747,3485.0,3484.9,2.6143]
[1754239268427,0.57389,3485.1,3485.0,2.2616]
[1754239268628,0.57385,3485.3,3485.2,2.1389]
[1754239268832,0.57385,3485.3,3485.2,2.6143]
[1754239269026,0.94855,3485.3,3485.2,2.6143]
[1754239270033,2.00435,3485.3,3485.2,2.6143]
[1754239271936,0.57385,3485.3,3485.2,2.6143]
[1754239273036,0.94855,3485.3,3485.2,2.6143]
[1754239273224,1.51555,3485.3,3485.2,2.6143]
[1754239274630,0.57383,3485.4,3485.2,1.0424]
[1754239274937,1.46963,3485.4,3485.3,2.5166]
[1754239275136,1.93503,3485.4,3485.3,2.5166]
[1754239275429,2.24853,3485.4,3485.3,2.5166]
[1754239275829,2.61673,3485.4,3485.3,2.5166]
[1754239276134,0.57383,3485.4,3485.3,2.5166]
[1754239277535,1.46963,3485.4,3485.3,2.5166]
[1754239279341,1.93503,3485.4,3485.3,2.5166]
[1754239284033,1.3612,3485.4,3485.3,2.5166]
[1754239285733,1.6747,3485.4,3485.3,2.5166]
[1754239287240,0.8958,3485.4,3485.3,2.5166]
[1754239287441,3.2078,3485.7,3485.6,2.5166]
[1754239287636,0.57377,3485.8,3485.6,2.5166]
[1754239287837,1.46952,3486.1,3486.0,1.0105]
[1754239288048,1.46952,3486.1,3486.0,2.5166]
[1754239288341,2.24842,3486.1,3486.0,2.5166]
[1754239288842,2.61662,3486.1,3486.0,2.5166]
[1754239290241,6.08442,3486.1,3486.0,0.8855]
[1754239290741,5.82442,3486.1,3486.0,2.5166]
[1754239293138,2.61662,3486.1,3486.0,2.5166]
[1754239295440,1.6747,3486.1,3486.0,2.5166]
[1754239296146,4.7116,3486.5,3486.4,1.0105]
[1754239296345,5.49533306,3486.5,3486.4,2.5166]
[1754239296841,6.03443306,3486.5,3486.4,2.5166]
[1754239297041,2.82663306,3486.5,3486.4,2.5166]
[1754239297344,2.0429,3486.5,3486.4,2.5166]
[1754239298540,1.3612,3486.5,3486.4,2.5166]
[1754239298740,2.0429,3486.8,3486.7,2.5166]
[1754239298942,2.98434765,3486.8,3486.7,1.5418]
[1754239299245,0.3567,3486.8,3486.7,2.5166]
[1754239299443,2.82573436,3486.8,3486.7,1.4046]
[1754239299645,2.0429,3486.8,3486.7,2.5166]
[1754239300048,1.0384,3486.5,3486.4,1.457]
[1754239300349,2.0429,3486.5,3486.4,1.9853]
[1754239300746,2.0429,3486.5,3486.4,2.5166]
[1754239301749,1.1356,3486.5,3486.4,2.5166]
[1754239301950,1.6747,3486.5,3486.4,2.5166]
[1754239304949,2.0429,3486.5,3486.4,2.5166]
[1754239313454,3.2078,3486.8,3486.7,1.0229]
[1754239313659,3.7814,3486.8,3486.7,2.5434]
[1754239313860,4.5505,3486.8,3486.7,2.5434]
[1754239314766,4.5505,3486.8,3486.1,3.2078]
[1754239314767,1.018,3486.3,3486.2,2.5434]
[1754239314965,0.5456,3486.5,3486.2,1.59658]
[1754239315161,1.3427,3486.5,3486.4,2.5434]
[1754239315759,3.0108,3487.0,3486.9,2.5434]
[1754239316059,3.82467,3487.0,3486.9,0.5327]
[1754239317362,0.6875,3486.9,3486.1,3.2078]
[1754239317566,2.0108,3486.2,3486.1,5.2817]
[1754239318063,2.0108,3486.2,3486.1,5.7512]
[1754239319265,2.0108,3486.2,3486.1,4.0981]
[1754239319465,2.0108,3486.2,3486.1,4.4124]
[1754239319665,2.0108,3486.2,3486.1,1.6741]
[1754239319964,2.0108,3486.2,3486.1,2.5434]
[1754239320971,1.6611,3486.2,3486.1,2.5434]
[1754239321164,0.8955,3486.2,3486.1,2.5434]
[1754239321365,2.03887,3486.4,3486.3,2.5434]
[1754239321872,2.58447,3486.4,3486.3,2.5434]
[1754239323977,2.0108,3486.1,3486.0,0.5327]
[1754239324168,2.0108,3486.1,3486.0,2.5434]
[1754239327873,2.2408,3486.1,3486.0,0.8903]
[1754239328372,0.57373,3486.0,3485.9,3.2078]
[1754239328576,2.81453,3486.0,3485.9,0.5327]
[1754239329971,2.81453,3486.0,3485.9,0.8903]
[1754239330570,2.81453,3486.0,3485.9,1.2046]
[1754239330877,2.58453,3486.0,3485.9,2.5434]
[1754239332971,2.58453,3486.0,3485.9,2.0251]
[1754239333177,2.81453,3486.0,3485.9,2.0251]
[1754239333974,2.58453,3486.0,3485.9,2.559]
[1754239335278,2.0108,3486.0,3485.9,2.559]
[1754239339982,2.0108,3486.0,3485.9,2.0251]
[1754239340184,2.2318,3486.0,3485.9,0.8903]
[1754239341081,2.2318,3486.0,3485.9,0.5327]
[1754239342085,2.542,3485.6,3485.5,4.8996]
[1754239342284,2.542,3485.6,3485.5,5.6975]
[1754239343286,2.763,3485.6,3485.5,0.8387]
[1754239343487,8.97686869,3485.6,3485.5,0.5063]
[1754239343784,9.19786869,3485.6,3485.5,0.5063]
[1754239344284,1.22576,3485.2,3485.1,0.8387]
[1754239344591,2.54206,3485.2,3485.1,0.8387]
[1754239344883,2.54206,3485.2,3485.1,2.4897]
[1754239349887,0.4574,3486.0,3485.7,0.3324]
[1754239350086,1.0039,3486.0,3485.9,0.984]
[1754239350282,1.0039,3486.0,3485.9,2.4897]
[1754239350490,2.00655877,3486.0,3485.9,1.9558]
[1754239350686,2.97085877,3486.0,3485.9,1.9558]
[1754239350886,2.97085877,3486.0,3485.9,0.8387]
[1754239351683,2.54205,3485.3,3485.2,0.8387]
[1754239351879,2.54205,3485.3,3485.2,2.1573]
[1754239352091,2.54205,3485.3,3485.2,2.4897]
[1754239356792,2.18845,3485.3,3485.2,2.4897]
[1754239362196,2.54205,3485.3,3485.2,2.4897]
[1754239363190,0.57384,3485.4,3485.2,0.984]
[1754239363396,0.57384,3485.4,3485.3,2.4897]
[1754239367697,1.40334,3485.4,3485.3,2.4897]
[1754239367901,2.49434,3485.4,3485.3,2.4897]
[1754239372300,2.49434,3485.4,3485.3,0.8387]
[1754239372505,2.69634,3485.4,3485.3,0.5063]
[1754239372802,2.69634,3485.4,3485.3,0.8545]
[1754239373604,2.69634,3485.4,3485.3,1.3356]
[1754239374505,2.49434,3485.4,3485.3,1.6347]
[1754239374802,3.2078,3485.6,3485.5,0.9921]
[1754239375008,3.2078,3485.6,3485.5,2.5376]
[1754239375508,3.7816,3485.6,3485.5,2.5376]
[1754239377807,6.48684038,3485.6,3485.5,2.5376]
[1754239378007,2.04831,3485.5,3485.4,0.6473]
[1754239378210,2.04831,3485.5,3485.4,1.6515]
[1754239378603,2.49431,3485.5,3485.4,1.6515]
[1754239379110,2.69631,3485.5,3485.4,1.1704]
[1754239379305,2.69631,3485.5,3485.4,0.8713]
[1754239379710,2.49431,3485.5,3485.4,1.1704]
[1754239380008,2.49431,3485.5,3485.4,1.6515]
[1754239380209,2.49431,3485.5,3485.4,2.1928]
[1754239380402,2.49431,3485.5,3485.4,2.5376]
[1754239381013,0.90561,3485.5,3485.4,2.5376]
[1754239381215,0.57381,3485.5,3485.4,2.5376]
[1754239381912,1.7527,3485.0,3484.9,0.5231]
[1754239382113,0.9768,3485.0,3484.9,0.8713]
[1754239382415,0.3318,3485.0,3484.9,2.5376]
[1754239382616,0.57388,3485.1,3484.9,2.5376]
[1754239382809,0.57388,3485.1,3484.9,0.9921]
[1754239383015,0.57388,3485.1,3485.0,2.5376]
[1754239383419,0.57387,3485.2,3485.1,2.5376]
[1754239384116,1.40337,3485.2,3485.1,2.5376]
[1754239384613,1.84937,3485.2,3485.1,2.5376]
[1754239384814,2.17117,3485.2,3485.1,2.5376]
[1754239385014,2.49437,3485.2,3485.1,2.5376]